bitfinex/quotes_ETHUSD_20260216
["timestamp","ask_amount","ask_price","bid_price","bid_amount"]
[1771227716765,1.01877746,1968.9,1967.9,1.191]
[1771227717358,1.01877746,1968.9,1967.3,1.03004035]
[1771227717535,1.01877746,1968.9,1967.5,4.68006]
[1771227717732,1.01877746,1968.9,1967.8,8.92205849]
[1771227717954,1.01877746,1968.9,1967.9,1.193]
[1771227719073,1.01877746,1968.9,1967.9,2.46336773]
[1771227720163,1.01987746,1968.8,1967.9,2.46336773]
[1771227720344,1.01987746,1968.8,1967.9,1.193]
[1771227720547,1.01987746,1968.8,1968.0,1.194]
[1771227720747,1.01987746,1968.8,1967.6,0.18685624]
[1771227720946,1.01987746,1968.8,1967.7,2.109]
[1771227721149,1.01987746,1968.8,1967.5,11.20884568]
[1771227721367,1.01987746,1968.8,1967.6,2.11]
[1771227722862,1.01987746,1968.8,1967.5,0.001]
[1771227723068,1.01987746,1968.8,1967.6,1.198]
[1771227724465,1.01987746,1968.8,1967.5,0.001]
[1771227724666,1.01987746,1968.8,1967.6,1.196]
[1771227726844,1.01987746,1968.8,1967.6,2.18190394]
[1771227727041,1.01987746,1968.8,1967.6,1.196]
[1771227728436,1.01987746,1968.8,1967.6,3.44281235]
[1771227728639,1.01987746,1968.8,1967.6,2.17225337]
[1771227729066,1.01987746,1968.8,1967.6,1.196]
[1771227729264,1.01987746,1968.8,1967.7,1.194]
[1771227730771,1.01987746,1968.8,1967.7,1.195]
[1771227731584,1.01987746,1968.8,1967.7,2.46551659]
[1771227731772,1.01987746,1968.8,1967.7,1.195]
[1771227731970,1.01987746,1968.8,1967.7,2.1568833]
[1771227732485,1.01987746,1968.8,1967.8,0.95712131]
[1771227733549,1.01987746,1968.8,1967.9,1.27038975]
[1771227733877,0.0011,1968.8,1968.0,0.94763912]
[1771227734878,0.0011,1968.7,1968.0,0.94763912]
[1771227735850,0.0011,1968.7,1968.1,2.21317947]
[1771227736054,0.0011,1968.7,1968.2,1.197]
[1771227738082,0.0011,1968.7,1968.2,4.3156826]
[1771227738255,0.0011,1968.7,1968.3,0.92884061]
[1771227738460,0.0011,1968.7,1968.2,2.112]
[1771227738973,0.0011,1968.7,1968.2,3.38218841]
[1771227739180,0.0011,1968.7,1968.2,4.31102902]
[1771227739389,0.0011,1968.7,1968.3,0.92417528]
[1771227739692,0.0011,1968.7,1968.2,3.38218841]
[1771227740270,0.0011,1968.7,1968.2,2.112]
[1771227740465,0.0011,1968.7,1967.9,2.19452938]
[1771227740673,0.0011,1968.7,1968.3,1.2]
[1771227741462,0.0011,1969.0,1968.3,1.2]
[1771227741867,0.0011,1969.0,1968.3,2.11488549]
[1771227742583,0.0011,1969.0,1968.3,3.38501635]
[1771227742879,0.0011,1969.0,1968.3,2.11488549]
[1771227743481,0.0011,1969.0,1968.3,1.2]
[1771227743776,1.02125381,1969.0,1968.3,1.2]
[1771227745196,1.02125381,1969.5,1968.5,1.0879715]
[1771227746870,1.02125381,1969.5,1968.6,1.26993802]
[1771227747064,1.02125381,1969.5,1968.7,1.199]
[1771227748153,1.02125381,1969.5,1968.7,2.08643382]
[1771227748756,1.02125381,1969.5,1968.7,3.35629407]
[1771227748961,0.0011,1968.9,1968.7,3.35629407]
[1771227749166,1.02125381,1969.5,1968.7,3.35629407]
[1771227749493,0.0011,1969.0,1968.7,3.35629407]
[1771227749669,1.02125381,1969.5,1968.7,3.35629407]
[1771227750177,0.0011,1969.2,1968.7,3.35629407]
[1771227750379,0.0011,1969.2,1968.8,0.87387184]
[1771227751282,0.0011,1969.5,1968.8,2.14366929]
[1771227751461,0.98566076,1969.5,1968.7,2.46884891]
[1771227751665,0.98566076,1969.5,1968.7,1.199]
[1771227751878,0.98566076,1969.5,1968.4,0.001]
[1771227751879,0.98566076,1969.5,1968.4,0.8703985]
[1771227752087,0.98566076,1969.5,1968.5,1.889]
[1771227761718,0.98566076,1969.5,1968.6,0.82509454]
[1771227763037,0.98566076,1969.4,1968.5,1.889]
[1771227765310,0.98566076,1969.4,1968.5,0.974]
[1771227774021,0.98566076,1969.4,1968.5,1.74756601]
[1771227774213,0.98566076,1969.4,1968.6,0.77356601]
[1771227775244,0.0011,1969.4,1968.6,0.77356601]
[1771227775639,0.0011,1969.4,1968.6,0.77456601]
[1771227775834,0.0011,1969.3,1968.6,0.77456601]
[1771227776745,0.0011,1969.3,1968.8,0.76096175]
[1771227778674,0.0011,1969.3,1968.7,0.93947579]
[1771227781069,0.0011,1969.3,1968.7,2.20934383]
[1771227781379,0.0011,1969.6,1969.2,7.74717849]
[1771227781572,0.0011,1969.6,1969.1,1.9283255]
[1771227782697,0.96162922,1969.8,1969.4,7.74717849]
[1771227782698,0.0011,1969.8,1969.4,7.74717849]
[1771227782849,0.0011,1969.8,1969.2,0.736174]
[1771227783068,0.96162922,1969.8,1969.1,1.184]
[1771227783229,0.96162922,1969.8,1969.2,1.187]
[1771227784460,0.0011,1969.8,1969.2,1.187]
[1771227785264,0.0011,1969.8,1969.2,1.91503801]
[1771227785464,0.0011,1969.8,1969.2,3.18458078]
[1771227785676,0.0011,1970.2,1969.4,0.89278402]
[1771227785834,0.96162922,1970.2,1969.2,2.07978402]
[1771227788085,0.96162922,1970.2,1969.3,0.89278402]
[1771227788940,0.0011,1970.1,1969.4,0.89278402]
[1771227789407,0.96162922,1970.1,1969.4,0.89278402]
[1771227789607,0.96162922,1970.1,1969.2,0.89278402]
[1771227789767,0.96162922,1970.1,1969.5,1.186]
[1771227794602,0.96162922,1970.1,1969.3,0.90691242]
[1771227796012,0.96162922,1970.1,1969.4,0.90691242]
[1771227797196,0.0011,1970.1,1969.4,0.90691242]
[1771227797899,0.0011,1970.1,1969.5,2.08791242]
[1771227798105,0.88049677,1970.1,1969.5,1.181]
[1771227801301,0.88049677,1970.1,1969.5,1.182]
[1771227803390,0.0011,1970.1,1969.6,0.90691242]
[1771227804004,0.0011,1970.1,1969.8,7.73831038]
[1771227807014,0.0011,1970.1,1969.8,8.6452228]
[1771227807214,0.0011,1970.1,1969.9,1.182]
[1771227808726,0.88049677,1970.1,1969.9,1.182]
[1771227810033,0.88049677,1970.1,1969.6,1.185]
[1771227813490,0.88049677,1970.1,1969.6,1.186]
[1771227813710,0.0011,1970.0,1969.6,1.186]
[1771227815423,0.88049677,1970.0,1969.6,1.186]
[1771227815660,0.87939677,1969.5,1968.6,0.001]
[1771227816706,1.21,1969.8,1968.6,1.194]
[1771227816707,0.87939677,1969.3,1968.6,1.194]
[1771227826130,7.73831038,1969.4,1968.7,0.86855196]
[1771227826330,0.90119016,1969.5,1968.8,0.86855196]
[1771227826534,0.90119016,1969.5,1968.9,7.73831038]
[1771227826721,0.90119016,1969.5,1969.0,1.192]
[1771227826919,0.0011,1969.4,1969.0,1.192]
[1771227828529,1.3,1969.3,1969.0,1.192]
[1771227832022,1.2034413,1969.3,1969.0,1.192]
[1771227832815,2.10463146,1969.3,1968.7,0.86955196]
[1771227833115,0.90119016,1969.2,1968.8,1.192]
[1771227833814,0.90119016,1969.2,1968.7,0.001]
[1771227834016,0.90119016,1969.2,1968.8,1.191]
[1771227834930,2.10463146,1969.3,1968.8,1.191]
[1771227836748,0.90119016,1969.2,1968.8,1.191]
[1771227837934,0.90119016,1969.1,1968.9,1.19]
[1771227839546,0.90119016,1969.1,1969.0,0.001]
[1771227839722,0.0011,1969.2,1969.0,0.001]
[1771227841744,0.90229016,1969.2,1969.0,0.001]
[1771227842055,0.90229016,1969.2,1969.1,1.19]
[1771227843333,0.90229016,1969.2,1968.9,1.19]
[1771227843658,0.90119016,1969.0,1968.9,1.19]
[1771227843824,0.0011,1969.2,1968.9,1.19]
[1771227853852,0.0011,1969.2,1969.0,0.001]
[1771227854026,0.0011,1969.1,1969.0,0.001]
[1771227858576,0.0011,1969.2,1969.0,0.001]
[1771227859481,0.8578098,1969.2,1969.1,1.185]
[1771227859643,0.0011,1969.2,1969.1,1.185]
[1771227867376,0.8578098,1969.4,1969.1,1.185]
[1771227867377,0.0011,1969.4,1969.1,1.185]
[1771227868271,1.3,1969.3,1969.1,1.185]
[1771227871654,2.1567098,1969.3,1969.1,1.185]
[1771227872072,1.3,1969.3,1969.1,1.185]
[1771227874173,1.3,1969.3,1969.0,0.001]
[1771227874359,1.3,1969.3,1969.1,1.181]
[1771227878270,1.3,1969.3,1969.2,0.001]
[1771227878671,1.3011,1969.3,1969.2,0.001]
[1771227880287,2.1578098,1969.3,1969.2,0.001]
[1771227880986,1.3011,1969.3,1969.2,0.001]
[1771227887891,2.09875432,1969.3,1969.2,0.001]
[1771227889391,1.3011,1969.3,1969.2,0.001]
[1771227895393,0.7511,1969.3,1969.2,0.001]
[1771227896169,0.0011,1969.3,1969.2,0.001]
[1771227900265,0.0011,1969.5,1969.2,0.81802825]
[1771227900472,0.79875432,1970.0,1969.4,8.56515441]
[1771227900670,0.0011,1970.0,1969.6,7.74812616]
[1771227901274,0.0011,1970.0,1969.5,2.00302825]
[1771227901704,0.0011,1970.0,1969.6,0.914]
[1771227902271,0.0011,1970.0,1969.7,0.81702825]
[1771227902501,0.0011,1970.0,1969.8,1.188]
[1771227903295,0.0011,1970.2,1970.0,7.74812616]
[1771227903495,0.0011,1970.2,1970.1,1.189]
[1771227905293,0.0011,1970.2,1970.1,2.00602825]
[1771227905499,0.0011,1970.6,1970.1,2.00602825]
[1771227906298,0.79765432,1970.4,1969.6,8.56515441]
[1771227906496,0.79765432,1970.2,1969.7,0.914]
[1771227906812,7.74922616,1970.5,1969.8,1.192]
[1771227906813,0.79765432,1970.0,1969.8,1.192]
[1771227914982,0.79765432,1970.0,1969.9,0.001]
[1771227915883,0.0011,1970.4,1969.9,0.001]
[1771227915884,0.7578628,1970.2,1969.9,0.001]
[1771227916410,0.0011,1970.4,1969.9,0.001]
[1771227916411,0.7578628,1970.3,1969.9,0.001]
[1771227916818,0.7578628,1969.9,1969.6,0.001]
[1771227917020,0.7578628,1969.9,1969.7,0.52]
[1771227917223,7.74204133,1970.2,1969.7,0.52]
[1771227917391,0.7589628,1970.4,1969.7,0.52]
[1771227918986,0.7589628,1970.4,1969.7,1.32059618]
[1771227921426,0.7589628,1970.4,1969.7,0.52]
[1771227926199,0.7589628,1970.4,1969.7,1.32059618]
[1771227927421,0.7589628,1970.4,1969.8,0.001]
[1771227928211,0.75383719,1970.3,1969.8,0.001]
[1771227929123,0.0011,1970.3,1969.8,0.71784049]
[1771227930423,0.0011,1970.3,1970.0,0.71684049]
[1771227931124,0.0011,1970.3,1969.8,0.71784049]
[1771227931311,0.75273719,1970.2,1969.8,0.915]
[1771227931515,0.75273719,1970.2,1969.9,1.187]
[1771227932639,0.0011,1970.3,1969.9,1.187]
[1771227933517,0.75383719,1970.3,1969.9,1.187]
[1771227936215,0.0011,1970.3,1969.9,1.187]
[1771227937318,0.75383719,1970.3,1969.9,1.187]
[1771227937810,0.0011,1970.3,1969.9,1.187]
[1771227939042,0.0011,1970.3,1969.9,1.90384049]
[1771227940143,0.0011,1970.3,1969.9,1.187]
[1771227940449,0.0011,1970.2,1970.0,0.001]
[1771227946544,0.0011,1970.3,1970.0,0.001]
[1771227947146,0.75075093,1970.3,1970.0,0.001]
[1771227948837,0.75075093,1970.3,1970.0,1.193]
[1771227952453,0.0011,1970.2,1970.0,1.193]
[1771227957858,0.74514575,1970.4,1970.0,1.193]
[1771227958277,0.0011,1970.5,1970.0,1.92921369]
[1771227959066,0.0011,1970.5,1970.1,0.73621369]
[1771227961246,0.0011,1970.5,1970.0,1.92921369]
[1771227962862,0.0011,1970.5,1970.0,2.84321369]
[1771227963181,0.0011,1970.5,1970.0,2.107]
[1771227963182,0.75075093,1970.5,1970.0,2.107]
[1771227963780,0.0011,1970.5,1970.0,2.84321369]
[1771227963998,0.0011,1970.5,1970.1,0.001]
[1771227964308,0.0011,1970.4,1970.2,0.73621369]
[1771227964597,0.74965093,1970.3,1969.9,0.001]
[1771227973986,7.74230707,1970.4,1969.9,0.001]
[1771227974183,0.69772126,1970.4,1969.9,0.001]
[1771227974557,0.0011,1970.4,1969.9,0.74797096]
[1771227975383,0.0011,1970.4,1969.9,0.001]
[1771227975384,0.69772126,1970.4,1969.9,0.001]
[1771227975594,0.69662126,1970.3,1969.9,0.001]
[1771227976168,0.69662126,1970.3,1970.0,0.001]
[1771227976369,0.0011,1970.2,1970.0,0.001]
[1771227976566,0.0011,1970.2,1970.1,1.198]
[1771227976567,0.69772126,1970.2,1970.1,1.198]
[1771227976996,0.0011,1970.2,1970.1,1.198]
[1771227988899,0.0011,1970.2,1970.1,1.199]
[1771227992503,0.0011,1970.4,1970.1,1.94597096]
[1771227992807,0.0011,1970.5,1970.1,1.199]
[1771227993596,0.69772126,1970.5,1970.1,1.199]
[1771227994101,0.69772126,1970.5,1970.2,2.113]
[1771227996507,0.69662126,1970.5,1970.2,2.113]
[1771227996710,0.0011,1970.4,1970.2,2.113]
[1771227998588,0.0011,1970.3,1970.2,2.113]
[1771227999108,0.69662126,1970.5,1970.2,2.113]
[1771227999312,0.0011,1970.4,1970.2,2.113]
[1771228000308,0.69772126,1970.6,1970.2,2.113]
[1771228000510,0.0011,1970.5,1970.2,2.113]
[1771228001021,0.0011,1970.5,1970.3,0.001]
[1771228001210,0.0011,1970.4,1970.3,0.001]
[1771228003711,0.0011,1970.5,1970.3,0.001]
[1771228004288,0.0011,1970.7,1970.4,0.65097928]
[1771228006216,0.0011,1970.7,1970.3,0.001]
[1771228008104,0.0011,1970.7,1970.3,0.6670102]
[1771228008420,0.0011,1970.7,1970.4,8.40721727]
[1771228009001,0.0011,1970.9,1970.3,0.001]
[1771228009002,0.0011,1970.9,1970.6,8.40721727]
[1771228009200,0.0011,1970.9,1970.7,1.203]
[1771228012244,0.0011,1970.9,1970.3,0.001]
[1771228012245,0.7121364,1970.9,1970.3,0.001]
[1771228012403,0.7110364,1970.7,1970.4,1.205]
[1771228015243,0.7110364,1970.5,1970.3,0.001]
[1771228015398,0.7110364,1970.5,1970.3,1.205]
[1771228020939,0.0011,1970.8,1970.3,1.205]
[1771228020940,0.7110364,1970.7,1970.3,1.205]
[1771228021516,0.7110364,1970.7,1970.3,0.001]
[1771228021720,0.7110364,1970.6,1970.3,0.001]
[1771228022317,0.7110364,1970.4,1970.2,1.203]
[1771228022730,0.7110364,1970.2,1970.1,1.055]
[1771228023625,0.0011,1970.8,1970.1,1.055]
[1771228023626,0.7110364,1970.6,1970.1,1.055]
[1771228023825,0.7121364,1970.8,1970.1,1.7210102]
[1771228024243,0.7121364,1970.8,1970.2,0.6660102]
[1771228024440,0.0011,1970.8,1970.3,0.6660102]
[1771228024648,0.0011,1970.8,1970.4,8.40721727]
[1771228024850,0.0011,1970.8,1970.4,0.6660102]
[1771228025146,0.0011,1970.8,1970.4,8.40721727]
[1771228025308,0.0011,1970.8,1970.4,8.40821727]
[1771228025705,0.0011,1970.8,1970.5,0.6660102]
[1771228025942,0.0011,1970.8,1970.6,1.202]
[1771228026107,0.0011,1970.9,1970.6,1.202]
[1771228027138,0.0011,1970.9,1970.7,0.914]
[1771228031364,0.7121364,1970.9,1970.7,0.914]
[1771228033038,0.7121364,1970.9,1970.8,1.206]
[1771228037267,0.0011,1970.9,1970.8,1.206]
[1771228042172,0.0011,1971.1,1970.8,1.206]
[1771228042344,0.63322471,1971.1,1970.8,1.206]
[1771228045883,0.0011,1971.1,1970.8,1.206]
[1771228048978,0.0011,1971.1,1970.9,0.001]
[1771228049179,0.0011,1971.0,1970.9,0.001]
[1771228057252,0.63212471,1971.5,1970.9,0.67309384]
[1771228057451,0.63212471,1971.5,1970.9,0.001]
[1771228058055,0.63212471,1971.5,1970.9,0.67309384]
[1771228059268,0.63212471,1971.5,1970.9,8.09894668]
[1771228061793,0.63212471,1971.7,1971.0,0.67309384]
[1771228061993,0.0011,1971.4,1971.0,1.58709384]
[1771228062681,0.63212471,1972.4,1971.3,7.42585284]
[1771228062992,0.63212471,1972.2,1971.4,1.205]
[1771228063755,0.62059863,1971.8,1971.0,0.001]
[1771228063993,0.62059863,1971.8,1971.1,1.205]
[1771228067701,0.62059863,1971.8,1971.1,1.8242692]
[1771228069608,1.26756052,1972.3,1971.2,0.6192692]
[1771228069609,0.60495771,1972.2,1971.2,0.6192692]
[1771228069789,1.26747058,1972.5,1971.1,8.63085284]
[1771228069790,0.60495771,1972.4,1971.3,8.04512204]
[1771228071582,0.60495771,1972.4,1971.5,7.42585284]
[1771228071779,0.60495771,1972.4,1971.6,1.205]
[1771228071979,0.60495771,1972.3,1971.6,1.205]
[1771228074101,0.60605771,1972.3,1971.6,1.205]
[1771228076913,0.60605771,1972.3,1971.5,0.6192692]
[1771228076914,7.42585284,1971.9,1971.0,0.6202692]
[1771228077080,0.0011,1972.3,1971.1,1.8222692]
[1771228077081,0.60495771,1971.8,1971.1,1.8222692]
[1771228077703,1.3,1971.7,1971.1,1.8222692]
[1771228077905,1.90495771,1971.7,1971.1,1.8222692]
[1771228079286,1.90495771,1971.7,1971.1,1.203]
[1771228082343,0.60495771,1971.6,1971.1,1.203]
[1771228084495,0.60495771,1971.6,1971.0,0.914]
[1771228084496,0.60495771,1971.5,1971.0,0.914]
[1771228084694,0.60495771,1971.5,1971.0,0.001]
[1771228084916,0.60495771,1971.5,1971.1,1.202]
[1771228086735,0.60495771,1971.5,1971.2,0.001]
[1771228086921,0.60495771,1971.3,1971.1,1.202]
[1771228093947,0.60495771,1971.3,1971.1,0.26471955]
[1771228096720,0.58250998,1971.1,1970.9,0.001]
[1771228096954,0.58250998,1971.1,1970.8,0.001]
[1771228098719,0.58250998,1971.1,1970.9,0.001]
[1771228099118,0.58250998,1971.1,1970.8,0.001]
[1771228102441,0.58250998,1971.3,1970.8,0.001]
[1771228111978,0.58250998,1971.3,1970.9,0.001]
[1771228112273,0.0011,1971.2,1970.9,0.001]
[1771228113869,0.58360998,1971.2,1970.9,0.001]
[1771228125054,0.58360998,1971.2,1971.0,0.001]
[1771228125254,0.0011,1971.1,1971.0,0.001]
[1771228127755,0.0011,1971.1,1971.0,0.59567151]
[1771228128077,0.0011,1971.5,1971.0,0.59567151]
[1771228128078,0.0011,1971.5,1971.1,0.59467151]
[1771228133155,0.0011,1971.5,1971.2,0.914]
[1771228133353,0.0011,1971.5,1971.3,1.19]
[1771228134969,0.0011,1971.5,1971.3,1.78467151]
[1771228135186,0.0011,1971.5,1971.3,1.19]
[1771228138218,0.0011,1971.4,1971.3,1.19]
[1771228141713,0.53971388,1972.3,1971.4,0.59275644]
[1771228142007,0.53971388,1972.2,1971.4,0.59275644]
[1771228149627,0.53971388,1972.2,1971.5,0.001]
[1771228149933,0.54081388,1972.1,1971.5,0.5773709]
[1771228152340,0.54081388,1972.1,1971.5,1.4903709]
[1771228156811,0.54081388,1972.1,1971.5,0.914]
[1771228160742,0.54081388,1972.1,1971.5,1.46825974]
[1771228161446,0.0011,1972.1,1971.5,0.914]
[1771228161633,0.0011,1972.1,1971.6,0.55228057]
[1771228161816,0.0011,1972.1,1971.6,1.46528057]
[1771228162839,0.56598892,1972.1,1971.6,0.913]
[1771228167340,0.56598892,1972.1,1971.5,0.001]
[1771228167543,0.56598892,1972.1,1971.7,1.183]
[1771228170318,0.0011,1972.1,1971.7,1.183]
[1771228170753,0.0011,1972.1,1971.8,0.53469506]
[1771228170929,7.41708131,1972.8,1971.7,8.60008131]
[1771228170930,0.56488892,1973.5,1972.2,0.53469506]
[1771228171248,0.56488892,1973.4,1972.4,7.41708131]
[1771228171713,0.56488892,1973.4,1972.5,0.53276607]
[1771228172239,0.56488892,1973.4,1972.6,1.183]
[1771228173328,0.56488892,1973.4,1972.4,7.41708131]
[1771228173528,0.56488892,1973.4,1972.7,1.182]
[1771228173946,0.56488892,1973.4,1972.4,7.41708131]
[1771228174248,0.56488892,1973.4,1972.8,1.182]
[1771228174948,0.56488892,1973.2,1972.8,1.182]
[1771228175850,0.0011,1973.4,1973.0,7.41708131]
[1771228176446,0.0011,1973.4,1972.8,8.59908131]
[1771228176447,0.56488892,1974.1,1973.2,7.41708131]
[1771228176751,0.56488892,1974.1,1973.3,1.181]
[1771228177921,0.56488892,1974.1,1973.3,1.70245191]
[1771228179232,0.56488892,1974.3,1973.5,0.51955674]
[1771228182049,0.56488892,1974.3,1973.6,7.93098148]
[1771228182248,0.56488892,1974.3,1973.4,0.51390017]
[1771228182249,7.41708131,1974.3,1973.4,0.51390017]
[1771228182442,7.41708131,1974.3,1973.2,7.41708131]
[1771228182443,0.56488892,1974.0,1973.5,1.18]
[1771228184655,0.52411883,1973.8,1973.5,1.179]
[1771228186262,0.52194593,1974.0,1973.5,1.179]
[1771228186424,0.52194593,1973.5,1972.4,0.48885577]
[1771228186627,1.215,1974.4,1972.9,0.48885577]
[1771228186628,0.52194593,1973.7,1972.9,0.48885577]
[1771228186872,0.52194593,1973.7,1973.0,0.48885577]
[1771228187957,0.52194593,1973.7,1973.1,0.001]
[1771228190137,0.52194593,1973.5,1973.1,1.178]
[1771228191626,7.41708131,1973.8,1973.1,1.178]
[1771228191831,0.52194593,1973.7,1973.1,1.66685577]
[1771228192952,0.52194593,1973.7,1973.1,1.178]
[1771228195160,0.52194593,1973.3,1973.1,0.001]
[1771228195343,0.52194593,1973.5,1973.1,0.001]
[1771228195538,7.41708131,1973.8,1973.1,0.001]
[1771228195539,0.52194593,1973.8,1973.1,0.001]
[1771228195959,0.52194593,1973.8,1973.1,0.48906626]
[1771228196256,0.52194593,1973.8,1973.2,1.175]
[1771228197464,0.52194593,1973.7,1973.2,1.175]
[1771228198366,0.52194593,1973.7,1973.1,0.001]
[1771228198541,0.52194593,1973.7,1973.2,1.175]
[1771228201870,0.52304593,1973.9,1973.2,1.65227211]
[1771228202764,0.52304593,1973.9,1973.2,1.65327211]
[1771228202959,0.0011,1973.6,1973.2,1.65327211]
[1771228206163,0.0011,1973.6,1973.3,0.4701663]
[1771228206376,0.0011,1973.6,1973.2,1.176]
[1771228209456,0.0011,1973.6,1973.2,1.64088373]
[1771228209657,0.0011,1973.6,1973.3,0.46313171]
[1771228209954,0.52194593,1974.1,1973.3,0.46313171]
[1771228211466,0.52194593,1974.3,1973.3,0.46313171]
[1771228216660,0.52194593,1974.3,1973.3,0.46413171]
[1771228216879,0.48360781,1974.1,1973.3,0.46413171]
[1771228217677,0.48360781,1974.1,1973.4,0.913]
[1771228217879,0.48360781,1974.1,1973.5,0.44930385]
[1771228218779,0.48360781,1974.1,1973.4,0.913]
[1771228218780,0.48360781,1973.9,1973.3,0.001]
[1771228218984,0.48360781,1973.9,1972.8,0.001]
[1771228220178,1.26646403,1974.0,1972.8,0.001]
[1771228220179,0.48360781,1973.7,1972.8,0.001]
[1771228222170,1.26666446,1973.7,1972.8,0.001]
[1771228222379,0.48360781,1973.6,1972.8,0.001]
[1771228223058,0.48360781,1973.4,1972.8,0.001]
[1771228224288,0.48360781,1973.4,1972.2,1.433]
[1771228224472,0.48360781,1973.2,1972.2,1.433]
[1771228225060,0.48360781,1973.2,1972.0,0.43851615]
[1771228225061,0.48360781,1973.0,1972.0,1.61]
[1771228225280,0.48360781,1973.0,1972.1,0.43851615]
[1771228225489,0.48360781,1973.2,1972.1,0.43851615]
[1771228225870,7.41112139,1973.2,1972.1,7.84963754]
[1771228226113,0.48360781,1972.7,1971.8,0.43686126]
[1771228226402,0.48360781,1973.3,1972.4,0.43686126]
[1771228226582,0.48360781,1973.3,1972.3,7.41112139]
[1771228226901,0.48360781,1973.1,1972.2,0.43518178]
[1771228227061,7.41112139,1973.2,1972.0,0.43518178]
[1771228227062,0.48360781,1972.9,1972.0,0.43518178]
[1771228227389,0.48360781,1972.9,1972.1,2.076]
[1771228228488,0.48360781,1973.1,1972.2,0.43350648]
[1771228230691,0.48360781,1973.1,1972.3,0.001]
[1771228231285,0.48360781,1972.9,1972.3,0.001]
[1771228231489,0.48360781,1972.7,1972.3,0.001]
[1771228233488,0.48360781,1972.5,1972.3,0.001]
[1771228234690,0.7,1972.4,1972.3,0.001]
[1771228235184,0.7,1972.4,1972.2,0.001]
[1771228235691,1.18360781,1972.4,1972.2,0.001]
[1771228236999,0.7,1972.4,1972.2,0.001]
[1771228242627,1.26720242,1972.9,1972.2,0.001]
[1771228242924,1.51952663,1974.3,1972.2,0.43202788]
[1771228242925,0.48360781,1973.3,1972.2,0.43202788]
[1771228243406,0.48360781,1973.3,1972.2,0.001]
[1771228244006,0.48360781,1973.3,1972.2,0.43202788]
[1771228244306,0.48360781,1973.3,1972.3,0.001]
[1771228244512,0.48360781,1973.3,1972.3,0.43202788]
[1771228244817,0.0011,1972.4,1972.3,0.43202788]
[1771228245314,0.0011,1972.6,1972.4,0.43102788]
[1771228245496,0.47132878,1973.2,1972.4,0.43102788]
[1771228249998,0.47132878,1973.2,1972.4,1.34402788]
[1771228256815,0.47132878,1973.2,1972.3,0.001]
[1771228257125,0.48640684,1972.6,1971.6,0.001]
[1771228257685,0.58880684,1972.6,1972.5,0.001]
[1771228257907,0.48640684,1972.6,1971.6,0.001]
[1771228258304,0.48640684,1972.6,1972.4,0.001]
[1771228258493,0.48640684,1972.6,1971.6,0.001]
[1771228258917,0.48640684,1972.5,1972.2,0.001]
[1771228260719,0.48640684,1972.7,1972.2,0.001]
[1771228261387,0.48640684,1973.0,1972.2,0.001]
[1771228263494,0.48640684,1972.9,1972.2,0.001]
[1771228264619,0.48640684,1972.9,1972.2,0.43202788]
[1771228265611,0.48640684,1972.9,1972.2,0.001]
[1771228267531,3.3181454,1973.1,1972.3,0.43102788]
[1771228267532,2.53750684,1973.1,1972.3,0.43102788]
[1771228267896,0.48640684,1973.0,1972.2,0.001]
[1771228268317,0.48640684,1973.0,1972.2,0.43202788]
[1771228269139,0.0011,1973.1,1972.2,0.43202788]
[1771228270327,0.0011,1973.1,1972.4,0.43102788]
[1771228270741,0.0011,1972.8,1972.4,0.43102788]
[1771228276927,0.0011,1972.8,1972.5,0.43102788]
[1771228290442,0.0011,1972.8,1972.4,0.913]
[1771228290612,0.0011,1972.8,1972.4,1.34402788]
[1771228294542,0.0011,1972.8,1972.4,0.913]
[1771228294845,0.0011,1972.8,1972.5,0.43102788]
[1771228295219,0.0011,1972.8,1972.4,1.34402788]
[1771228295616,0.0011,1972.8,1972.5,0.43102788]
[1771228296023,0.0011,1973.1,1972.6,0.43102788]
[1771228296223,0.47651752,1973.7,1972.8,0.43102788]
[1771228296636,0.47651752,1973.6,1972.8,0.43102788]
[1771228297050,0.0011,1973.0,1972.8,0.43102788]
[1771228297215,0.47651752,1973.6,1972.8,0.43102788]
[1771228298739,0.47651752,1973.8,1972.8,0.43102788]
[1771228299128,5.6867314,1974.6,1972.8,0.43102788]
[1771228299129,0.47651752,1973.5,1972.8,0.43102788]
[1771228299751,1.26644521,1974.1,1972.8,0.43102788]
[1771228299917,0.47651752,1973.7,1972.8,0.43102788]
[1771228300120,0.47651752,1973.6,1972.8,0.43102788]
[1771228300537,0.47651752,1973.3,1972.5,0.001]
[1771228300745,0.47651752,1973.3,1972.5,0.43202788]
[1771228305247,0.47651752,1973.3,1972.5,0.001]
[1771228307053,0.47651752,1973.3,1972.5,0.43202788]
[1771228309057,0.47651752,1973.3,1972.6,0.001]
[1771228309453,0.48244557,1973.1,1972.6,0.001]
[1771228312656,0.48244557,1973.0,1972.6,0.001]
[1771228319866,7.89524111,1973.0,1972.6,0.001]
[1771228320071,0.48244557,1972.9,1972.6,0.001]
[1771228321163,0.48244557,1972.7,1972.5,0.001]
[1771228322665,0.48244557,1972.5,1972.3,0.001]
[1771228322859,7.89524111,1972.8,1972.3,0.001]
[1771228323057,0.48244557,1972.8,1972.3,0.001]
[1771228323261,0.48354557,1973.0,1972.3,0.43202788]
[1771228323468,0.48244557,1972.9,1972.3,0.43202788]
[1771228326470,0.0011,1973.0,1972.3,0.43202788]
[1771228326772,0.48354557,1973.1,1972.8,0.43102788]
[1771228326773,0.0011,1973.1,1972.8,0.43102788]
[1771228326949,0.0011,1973.3,1973.0,0.43102788]
[1771228328481,0.0011,1973.3,1972.9,2.03]
[1771228329472,0.0011,1973.3,1972.9,2.46102788]
[1771228332159,0.0011,1973.3,1973.0,0.43102788]
[1771228334067,0.0011,1973.3,1972.9,2.03]
[1771228334402,0.0011,1973.3,1972.9,2.46102788]
[1771228334869,0.0011,1973.2,1972.9,2.46102788]